Cogmind - Beta 15 @@@ ROGUE MODE // 2025.07.04 @ 20:30:04 Player: beans Result: Destroyed by Y-45 Defender with Heavy Assault Rifle Performance ------------- Evolutions (0) 0 Regions Visited (2) 400 Robots Destroyed (23) 115 Value Destroyed (551) 551 Prototype IDs (0) 0 Alien Tech Used (0) 0 Bonus (0) 0 TOTAL SCORE: 1066 Bonus ------- None Cogmind --------- Core Integrity 0/250 Matter 63/300 Energy 125/125 System Corruption 0% Temperature Cool (9) Movement Core (150) Ox2 Location -10/Subcaves Parts ------- > --- POWER (1) -------- Light Ion Engine > --- PROPULSION (2) --- (None) > --- UTILITY (2) ------ Core Shielding Weapon Shielding > --- WEAPON (2) ------- EM Pulse Gun > --- INVENTORY (5) ---- EM Pulse Gun Peak State ------------ > --- POWER ------------ Light Ion Engine > --- PROPULSION ------- Light Treads Light Treads > --- UTILITY ---------- Core Shielding > --- WEAPON ----------- Assault Rifle Assault Rifle > --- INVENTORY -------- EM Pulse Gun Assault Rifle [Rating: 6] Favorites ----------- Power Light Ion Engine Engine Light Ion Engine Propulsion Light Treads Treads Light Treads Utility Core Shielding Protection Core Shielding Weapon EM Pulse Gun Energy Gun EM Pulse Gun Ballistic Gun Assault Rifle Launcher Grenade Launcher Build | -11 -10 -10 ------- Run | Yrd Mat Sub Slots Evolved . | . . . Power . | . . . Propulsion . | . . . Utility . | . . . Weapon . | . . . Parts Attached 14 | 4 10 . Power 2 | 1 1 . Engine 2 | 1 1 . Core . | . . . Reactor . | . . . Propulsion 2 | 2 . . Treads 2 | 2 . . Leg . | . . . Wheel . | . . . Hover . | . . . Flight . | . . . Utility 2 | . 2 . Device . | . . . Storage . | . . . Processor . | . . . Hackware . | . . . Protection 2 | . 2 . Artifact . | . . . Weapon 8 | 1 7 . Energy Gun 4 | 1 3 . Energy Cannon . | . . . Ballistic Gun 3 | . 3 . Ballistic Cannon . | . . . Launcher 1 | . 1 . Special Weapon . | . . . Impact Weapon . | . . . Slashing Weapon . | . . . Piercing Weapon . | . . . Special Melee Weapon . | . . . Unidentified Prototypes . | . . . Parts Lost 9 | . 8 1 Power 1 | . 1 . Propulsion 2 | . 2 . Utility . | . . . Weapon 6 | . 5 1 Highest Loss Streak 5 | . 5 1 To Critical Strikes . | . . . Average Backups . | . . 1 Power . | . . . Propulsion . | . . . Utility . | . . . Weapon . | . . 1 Tool/Special . | . . . Unused Backups . | . . . Power . | . . . Propulsion . | . . . Utility . | . . . Weapon . | . . . Tool/Special . | . . . Average Slot Usage (%) 60 | . 60 71 Engine 6 | . 6 14 Treads 12 | . 12 . Protection 15 | . 14 28 Energy Gun 12 | . 12 14 Ballistic Gun 9 | . 10 . Launcher 3 | . 2 14 Peak Build Rating 6 | 4 6 5 Average Rating 4 | 2 4 4 On Entrance 3 | . 4 5 Naked Turns . | . . . Heaviest Build 10 | 5 9 10 Greatest Support 40 | 40 40 3 Greatest Overweight (x) 3 | 1 2 3 Average Overweight (x) . | . . 3 Largest Inventory Capacity 5 | 5 5 5 Average Capacity 5 | 5 5 5 Most Carried 3 | 2 3 1 Average Carried . | . . 1 Final Capacity 5 | 5 5 5 Final Carried 1 | . 1 1 Class Distribution -------------------- 100% | Mutant Dominant Class ---------------- Mutant | -10/Materials Mutant | -10/Subcaves Resources | -11 -10 -10 ----------- Run | Yrd Mat Sub Matter Collected 544 | 221 323 . Remotely . | . . . Salvage Created 539 | . 502 37 Parts 43 | . 42 1 Haulers Intercepted 1 | . 1 . Recyclers Shooed 1 | . 1 . Parts Field Recycled . | . . . Retrieved Matter . | . . . Parts Self-Destructed 1 | . . 1 Prevented . | . . . Kills | -11 -10 -10 ------- Run | Yrd Mat Sub Combat Hostiles Destroyed 13 | . 11 2 Guns 6 | . 6 . AOE 7 | . 5 2 Classes Destroyed 7 | . 7 . Worker 4 | . 4 . Builder 1 | . 1 . Tunneler 1 | . 1 . Hauler 1 | . 1 . Watcher 3 | . 3 . Swarmer 4 | . 3 1 Grunt 9 | . 8 1 Best Kill Streak 4 | . 4 2 Combat Bots Only 3 | . 3 2 Max Kills in Single Turn 2 | . 2 2 Gunslinging . | . . . Exploded 2 | . 2 2 Melee . | . . . Uniques/NPCs Destroyed . | . . . Combat | -11 -10 -10 -------- Run | Yrd Mat Sub Hostile Shots Fired 98 | . 75 23 Missed 27 | . 20 7 Hits 71 | . 55 16 Projectile 71 | . 55 16 Critical Strikes 2 | . 1 1 Actively Blocked 2 | . 1 1 Damage Taken 1214 | . 975 239 Core 250 | . 153 97 Absorbed by Shields . | . . . Redirected to Shielding 84 | . 34 50 Core Remaining (%) 100 | 100 . . Volleys Fired 118 | . 103 15 Largest 2 | . 2 2 Hottest 80 | . 80 70 Shots Fired 204 | . 187 17 Gun 186 | . 171 15 Cannon . | . . . Launcher 18 | . 16 2 Special . | . . . Kinetic 82 | . 82 . Thermal 29 | . 29 . Explosive 18 | . 16 2 Electromagnetic 75 | . 60 15 Robot Hit Streak 6 | . 5 6 Robot Miss Streak 7 | . 7 2 Penetration Max . | . . . Secondary Targets . | . . . Shots Hit Robots 65 | . 53 12 Core Hits 38 | . 34 4 Critical Kills 1 | . 1 . Critical Parts Destroyed . | . . . Critical Strikes 1 | . 1 . Destroy 1 | . 1 . Melee Attacks . | . . . Impact . | . . . Slashing . | . . . Piercing . | . . . Sneak Attacks . | . . . Combat Hostiles . | . . . Follow-up Attacks . | . . . Damage Inflicted 1380 | . 1156 224 Guns 869 | . 746 123 Cannons . | . . . Explosions 511 | . 410 101 Melee . | . . . Ramming . | . . . Kinetic 473 | . 473 . Thermal 150 | . 150 . Explosive 436 | . 335 101 Electromagnetic 321 | . 198 123 Impact . | . . . Slashing . | . . . Piercing . | . . . Highest Corruption . | . . . Average Corruption . | . . . Corruption Purged . | . . . Corruption Blocked . | . . . Overload Shots . | . . . Overflow Damage 139 | . 139 . Projectiles . | . . . Explosions 139 | . 139 . Melee . | . . . Knockbacks . | . . . Impact . | . . . Kinetic . | . . . Secondary . | . . . Self-Inflicted Damage 299 | . 274 25 Shots 4 | . 3 1 Rammed . | . . . Targets Rammed . | . . . Kicked . | . . . Crushed . | . . . Highest Temperature 54 | . 54 . Average Temperature 11 | . 11 . Received Heat Transfer 429 | . 366 63 Siege Activations . | . . . Martial Activations . | . . . Shielding Activations . | . . . Robots Disrupted . | . . . Combat Hostiles . | . . . Robots Corrupted . | . . . Combat Hostiles . | . . . Parts Fried . | . . . Impact Corruptions . | . . . Robots Melted . | . . . Combat Hostiles . | . . . Parts Melted . | . . . Heat Transferred 225 | . 225 . Parts Sabotaged . | . . . Parts Stolen . | . . . Parts Stripped . | . . . Power Chain Reactions . | . . . Alert | -11 -10 -10 ------- Run | Yrd Mat Sub Maximum Alert Level 1 | . 1 . Low Security (%) 89 | 100 89 . Level 1 10 | . 10 . Level 2 . | . . . Level 3 . | . . . Level 4 . | . . . Level 5 . | . . . High Security . | . . . Max Security . | . . . Peak Influence 249 | . 249 . Initial . | . . . Average 78 | . 81 . Influence Increases 681 | . 641 40 Destroy 0b10 Robot/C 260 | . 220 40 Destroy 0b10 Robot/NC 50 | . 50 . Destroy Leader 48 | . 48 . Disable Machine 150 | . 150 . Destroy Structure 173 | . 173 . Influence Decreases 544 | . 396 148 Entered New Map 118 | . . 118 Time Decay 346 | . 326 20 Lost Part 80 | . 70 10 Squads Dispatched 1 | . 1 . Investigation 1 | . 1 . Extermination . | . . . Reinforcement . | . . . Assault . | . . . Garrison . | . . . Intercept . | . . . Searches Triggered . | . . . Construction Impeded . | . . . Haulers Reinforced . | . . . Active Scanning Responses . | . . . Cargo Convoy Interrupts . | . . . Stealth | -11 -10 -10 --------- Run | Yrd Mat Sub Distress Signals 1 | . 1 . Communications Jammed . | . . . Distress Signals . | . . . Times Spotted 21 | . 18 3 Peak Tracking Total 3 | . 3 3 Tactical Retreats . | . . . Traps | -11 -10 -10 ------- Run | Yrd Mat Sub Traps Triggered 2 | . 2 . Indirectly . | . . . Trap Hack Attempts . | . . . Triggered . | . . . Disarmed . | . . . Reprogrammed . | . . . Reused . | . . . Traps Extracted . | . . . Installed . | . . . Triggered . | . . . Machines | -11 -10 -10 ---------- Run | Yrd Mat Sub Machines Disabled 10 | . 10 . Max in Single Turn 2 | . 2 . Machines Repaired . | . . . Machines Dismantled . | . . . Machines Sabotaged . | . . . Overloaded Fab Kills . | . . . Hacking | -11 -10 -10 --------- Run | Yrd Mat Sub Machines Accessed . | . . . Terminals . | . . . Fabricators . | . . . Repair Stations . | . . . Recycling Units . | . . . Scanalyzers . | . . . Garrison Access . | . . . Total Hacks . | . . . Successful . | . . . Failed . | . . . Catastrophic . | . . . Database Lockouts . | . . . Manual . | . . . Terminals . | . . . Fabricators . | . . . Repair Stations . | . . . Recycling Units . | . . . Scanalyzers . | . . . Garrison Access . | . . . Terminal Hacks . | . . . Fabricator Hacks . | . . . Repair Station Hacks . | . . . Recycling Unit Hacks . | . . . Scanalyzer . | . . . Garrison Access Hacks . | . . . Unauthorized Hacks . | . . . Terminals . | . . . Fabricators . | . . . Repair Stations . | . . . Recycling Units . | . . . Scanalyzers . | . . . Garrison Access . | . . . Data Cores Recovered . | . . . Used . | . . . Hacking Detections . | . . . Full Trace Events . | . . . Feedback Events . | . . . Feedback Blocked . | . . . Robot Schematics Acquired . | . . . Robots Built . | . . . Authchips . | . . . Time . | . . . Total Robot Build Rating . | . . . Part Schematics Acquired . | . . . Parts Built . | . . . Authchips . | . . . Time . | . . . Total Part Build Rating . | . . . Parts Repaired . | . . . Time . | . . . Parts Recycled . | . . . Recycled Matter . | . . . Retrieved Matter . | . . . Retrieved Components . | . . . Parts Scanalyzed . | . . . Part Schematics Acquired . | . . . Parts Damaged . | . . . Bothacking | -11 -10 -10 ------------ Run | Yrd Mat Sub Used RIF Installer . | . . . Robots Hacked . | . . . Non-combat . | . . . Combat . | . . . Robot Hacks Applied . | . . . Relay Couplers Released . | . . . Fabnet Peak Effective % . | . . . Robots Rewired . | . . . Allies Hacked . | . . . Hacks Repelled . | . . . Allies | -11 -10 -10 -------- Run | Yrd Mat Sub Total Allies . | . . . Largest Group . | . . . Highest-Rated Group . | . . . Highest-Rated Ally . | . . . Total Orders . | . . . Ally Attacks . | . . . Total Damage . | . . . Kills . | . . . Allies Corrupted . | . . . Allies Melted . | . . . Intel | -11 -10 -10 ------- Run | Yrd Mat Sub Active Infowar (turns) . | . . . Robot Analysis Total . | . . . Derelict Logs Recovered . | . . . Drone Launches . | . . . Drone Recoveries . | . . . Exploration | -11 -10 -10 ------------- Run | Yrd Mat Sub Turns Passed 1528 | 59 1415 54 Spaces Moved 857 | 47 800 10 Core 517 | 24 483 10 Treads 340 | 23 317 . Legs . | . . . Wheels . | . . . Hover . | . . . Flight . | . . . Fastest Speed 50 | 50 50 200 Average Speed 130 | 110 130 200 Slowest Speed 200 | 160 160 200 Overloaded Moves . | . . . Propulsion Burnouts . | . . . Robots Hopped . | . . . Potential Cave-ins . | . . . Cave-ins Triggered . | . . . Exploration Rate (%) 33 | 5 93 3 Regions Visited 2 Branch Regions 1 Pre-discovered Areas . | . . . Known Exits Taken . | . . . Unknown Exits Taken 2 | 1 1 . Scrap Searched . | . . . Spaces Dug . | . . . Terrain Destroyed 204 | . 195 9 Melee . | . . . Projectile . | . . . AOE 204 | . 195 9 Terrain Rammed . | . . . Walls Destroyed . | . . . Machines Disabled . | . . . Actions | -11 -10 -10 --------- Run | Yrd Mat Sub Total 1060 | 54 980 26 Wait 53 | . 53 . Move 855 | 46 799 10 Hop . | . . . Pick Up 14 | 4 10 . Fast Attach . | . . . Attach 13 | 4 9 . Detach . | . . . Swap 7 | . 6 1 Drop . | . . . Fire 118 | . 103 15 Melee . | . . . Ram . | . . . Kick . | . . . Crush . | . . . Escape Stasis . | . . . Rewire . | . . . Trap . | . . . Miscellaneous . | . . . Route ------- -11/Scrapyard -10/Materials (discovered 5 exits: [*Mat x2] / [*Min x2] / [*Sub]) -10/Subcaves History --------- Turn | Location | Event 3 | -11/Scrapyard | Discovered new exit (range 14) 60 | -11/Scrapyard | Entered Materials 96 | -10/Materials | Discovered new exit (range 4) 200 | -10/Materials | Discovered new exit (range 16) 300 | -10/Materials | Build established: Mutant 743 | -10/Materials | Lost 5 parts (2n3w) 748 | -10/Materials | Discovered new exit (range 15) 994 | -10/Materials | Core integrity fell below 50% 1073 | -10/Materials | Discovered new exit (range 5) 1466 | -10/Materials | Discovered new exit (range 6) 1475 | -10/Materials | Entered Subcaves 1512 | -10/Subcaves | Core integrity fell below 20% 1529 | -10/Subcaves | Destroyed by Y-45 Defender with Heavy Assault Rifle Last Messages --------------- U-05 Engineer lays Concrete. K-01 Serf collects debris. U-05 Engineer lays Concrete. G-47 Trooper destroyed. G-34 Mercenary destroyed. U-05 Engineer lays Concrete. U-05 Engineer builds a Wall. U-05 Engineer lays Concrete. Electrolysis Chamber disabled. Acquired Lgt. Ion Engine. Terminal disabled. EXIT=FOUND LOCATION=UNKNOWN AMBIENT_HEAT=-10 GOAL=ESCAPE S-10 Pest destroyed. G-34 Mercenary destroyed. Subatomizers dissect the Aluminum Leg. Aluminum Leg fries itself beyond repair. Grenade Launcher destroyed. Map ----- +----------------------------------------------------+ | ?????????????????????????????????????????????????? | | ?????????????????????????????????????????????????? | | ????????????????????????????? ???????????????????? | | ????????????????????????????? ???????????????????? | | ????????????????????????????? ???????????????????? | | ????????????????????????????? ???????????????????? | | ????????????????????????????? ???????????????????? | | ??????????????????????????### ???????????????????? | | ??????????????????????????# ???????????????????? | | ?????????????????????????? ???????????????????? | | ?????????????????????????? #???????????????????? | | ??????????????????????????# #???????????????????? | | ?????????????????????????? ???????????????????? | | ??????????????????????????# #???????????????????? | | ??????????????????????????# #???????????????????? | | ??????????????????????????# #???????????????????? | | ??????????????????????????# ##??????????????????? | | ??????????????????????????# ##?????????????????? | | ?????????????????####??#### #?????????????????? | | ??????????????#" # ### #?????????????????? | | ??????????????#"" #?????????????????? | | ???????????????""" #?????????????????? | | ???????????????#"" ## ## #?????????????????? | | ???????????????#####??## ### #????????????????? | | ??????????????????????# #? # #???????????????? | | ??????????????????????# @ #? #??????????????? | | ??????????????????????# #? ?????????????? | | ???????????????????? % #? ????????????? | | ???????????????? Y ? ??????????? | | ???????????????# ## % ##???????????? | | ???????????????????## #????????????? | | ????????????????????# ????????????? | | ????????????????????### ?????????????????? | | ??????????????????????# ?????????????????? | | ??????????????????????## ????????????????? | | ???????????????????????## ##????????????????? | | ????????????????????????? ##?????????????????? | | ????????????????????????? ##??????????????????? | | ????????????????????????? ###???????????????????? | | ????????????????????????? ??????????????????????? | | ????????????????????????? ??????????????????????? | | ????????????????????????? ??????????????????????? | | ?????????????????????????????????????????????????? | | ?????????????????????????????????????????????????? | | ?????????????????????????????????????????????????? | | ?????????????????????????????????????????????????? | | ?????????????????????????????????????????????????? | | ?????????????????????????????????????????????????? | | ?????????????????????????????????????????????????? | | ?????????????????????????????????????????????????? | +----------------------------------------------------+ Best States ------------- Heat Dissipation 25 Energy Generation 10 Energy Capacity 125 Matter Stores 300 Matter Capacity 300 Sight Range 16 Terrain Scan Density 10 Core Shielding 20 Weapon Shielding 33 Evasion (%) 50 Recoil Reduction 2 Item Schematics ----------------- None Robot Schematics ------------------ None Fabricated ------------ Nothing Repaired ---------- Nothing Alien Tech Used ----------------- None Achievements -------------- None Challenges ------------ None Game ------ Seed PortableCorruptionOptics Manual? 0 Play Time 00:09:07 Cumulative 39.2 hours Start 2025.07.04 @ 20:21:26 End 2025.07.04 @ 20:30:04 Sessions 1 Manual Loads 0 Difficulty Rogue Special Mode None Game No. 186 Rogue 186 Adventurer 0 Explorer 0 Win Type - Total 0 Types 0/0/0/0/0/0/0/0/0/0 Lore% 29 Gallery% 24 Achievement% 20 Wizard Run 0 Options --------- Layout 2 ASCII 0 Keyboard 0 Movement Mouse Keybinds 0 Fullscreen 1 Font 24/Smallcaps Map View 50x44 Zoom Use 0% Tactical HUD 0 Map Filters NONE Filters NONE Steam 1 RUN: 25aaec6b-c6de-430e-baac-7897770e3706